[Event "Titled Tuesday Blitz June 13 Early 2023"]
[White "Palczert, Matyas"]
[Black "Talibov, Shiroghlan"]
[WhiteFideId "784958"]
[BlackFideId "13429078"]
[WhiteElo "2224"]
[BlackElo "2274"]
[Result "0-1"]
[Round "1"]
[TimeControl "180+2"]
[Date "2023.06.13"]
[WhiteClock "0:00:19"]
[BlackClock "0:00:29"]
[Board "49"]

1. e4 {[%clk 0:02:49]}  c5 {[%clk 0:02:59]} 2. Nf3 {[%clk 0:02:40]}  d6 {[%clk 0:02:58]} 3. d4 {[%clk 0:02:38]}  cxd4 {[%clk 0:02:59]} 4. Nxd4 {[%clk 0:02:33]}  Nf6 {[%clk 0:02:58]} 5. Nc3 {[%clk 0:02:32]}  a6 {[%clk 0:02:58]} 6. Bg5 {[%clk 0:02:04]}  Nbd7 {[%clk 0:02:51]} 7. Bc4 {[%clk 0:02:02]}  Qa5 {[%clk 0:02:45]} 8. Qd2 {[%clk 0:01:51]}  e6 {[%clk 0:02:40]} 9. O-O {[%clk 0:01:33]}  Be7 {[%clk 0:02:35]} 10. Nd5 {[%clk 0:01:22]}  Qxd2 {[%clk 0:02:29]} 11. Nc7+ {[%clk 0:01:21]}  Kd8 {[%clk 0:02:05]} 12. Ndxe6+ {[%clk 0:01:20]}  fxe6 {[%clk 0:02:05]} 13. Nxe6+ {[%clk 0:01:20]}  Ke8 {[%clk 0:02:04]} 14. Nxg7+ {[%clk 0:01:20]}  Kf8 {[%clk 0:02:01]} 15. Ne6+ {[%clk 0:01:21]}  Ke8 {[%clk 0:02:00]} 16. Bxd2 {[%clk 0:01:18]}  Ne5 {[%clk 0:01:55]} 17. Nc7+ {[%clk 0:01:03]}  Kd8 {[%clk 0:01:42]} 18. Nxa8 {[%clk 0:01:01]}  Nxc4 {[%clk 0:01:42]} 19. Bc3 {[%clk 0:01:01]}  Rg8 {[%clk 0:01:39]} 20. Rfd1 {[%clk 0:00:53]}  Bh3 {[%clk 0:01:25]} 21. g3 {[%clk 0:00:52]}  Nxe4 {[%clk 0:01:25]} 22. Rd4 {[%clk 0:00:46]}  Nxc3 {[%clk 0:01:24]} 23. Rxc4 {[%clk 0:00:43]}  Ne2+ {[%clk 0:01:22]} 24. Kh1 {[%clk 0:00:42]}  Be6 {[%clk 0:01:22]} 25. Re4 {[%clk 0:00:40]}  Bd5 {[%clk 0:01:20]} 26. f3 {[%clk 0:00:41]}  Bxe4 {[%clk 0:01:18]} 27. fxe4 {[%clk 0:00:41]}  Nd4 {[%clk 0:01:09]} 28. Rd1 {[%clk 0:00:40]}  Nxc2 {[%clk 0:01:05]} 29. e5 {[%clk 0:00:38]}  Kd7 {[%clk 0:00:58]} 30. Nb6+ {[%clk 0:00:33]}  Ke6 {[%clk 0:00:56]} 31. exd6 {[%clk 0:00:28]}  Bxd6 {[%clk 0:00:56]} 32. Rd2 {[%clk 0:00:28]}  Nb4 {[%clk 0:00:52]} 33. Re2+ {[%clk 0:00:28]}  Kf7 {[%clk 0:00:47]} 34. Kg2 {[%clk 0:00:29]}  Nc6 {[%clk 0:00:42]} 35. Rf2+ {[%clk 0:00:27]}  Ke6 {[%clk 0:00:42]} 36. Re2+ {[%clk 0:00:27]}  Be5 {[%clk 0:00:41]} 37. Nc4 {[%clk 0:00:27]}  Rd8 {[%clk 0:00:40]} 38. g4 {[%clk 0:00:25]}  Rd4 {[%clk 0:00:39]} 39. Ne3 {[%clk 0:00:25]}  Re4 {[%clk 0:00:39]} 40. Kf2 {[%clk 0:00:25]}  Bd4 {[%clk 0:00:37]} 41. Kf3 {[%clk 0:00:24]}  Rxe3+ {[%clk 0:00:32]} 42. Rxe3+ {[%clk 0:00:24]}  Bxe3 {[%clk 0:00:33]} 43. Kxe3 {[%clk 0:00:25]}  Ke5 {[%clk 0:00:32]} 44. h4 {[%clk 0:00:25]}  h6 {[%clk 0:00:31]} 45. a3 {[%clk 0:00:22]}  a5 {[%clk 0:00:28]} 46. g5 {[%clk 0:00:20]}  h5 {[%clk 0:00:28]} 47. Kd3 {[%clk 0:00:20]}  Kf5 {[%clk 0:00:27]} 48. Kc4 {[%clk 0:00:20]}  Ne5+ {[%clk 0:00:28]} 49. Kb5 {[%clk 0:00:20]}  Nf3 {[%clk 0:00:29]} 50. Kxa5 {[%clk 0:00:20]}  Nxh4 {[%clk 0:00:28]} 51. Kb6 {[%clk 0:00:20]}  Ng6 {[%clk 0:00:28]} 52. Kxb7 {[%clk 0:00:20]}  h4 {[%clk 0:00:29]} 53. a4 {[%clk 0:00:21]}  h3 {[%clk 0:00:29]} 54. a5 {[%clk 0:00:21]}  h2 {[%clk 0:00:30]} 55. a6 {[%clk 0:00:21]}  h1=Q+ {[%clk 0:00:31]} 56. Kb8 {[%clk 0:00:22]}  Qh2+ {[%clk 0:00:29]} 57. Ka8 {[%clk 0:00:19]}  Qg2+ {[%clk 0:00:29]} 0-1


[Site "https://www.chess.com"]

[Event "Titled Tuesday Blitz June 13 Early 2023"]
[White "Bacrot, Etienne"]
[Black "Perera Alfonso, Rene Humberto"]
[WhiteFideId "605506"]
[BlackFideId "3514722"]
[WhiteElo "2672"]
[BlackElo "2313"]
[Result "1-0"]
[Round "1"]
[TimeControl "180+2"]
[Date "2023.06.13"]
[WhiteClock "0:01:45"]
[BlackClock "0:00:15"]
[Board "50"]

1. e4 {[%clk 0:02:55]}  c5 {[%clk 0:02:48]} 2. Nf3 {[%clk 0:02:53]}  d6 {[%clk 0:02:47]} 3. Bb5+ {[%clk 0:02:53]}  Bd7 {[%clk 0:02:26]} 4. c4 {[%clk 0:02:52]}  Nc6 {[%clk 0:02:22]} 5. O-O {[%clk 0:02:51]}  g6 {[%clk 0:02:19]} 6. Nc3 {[%clk 0:02:47]}  Bg7 {[%clk 0:02:16]} 7. Bxc6 {[%clk 0:02:46]}  Bxc6 {[%clk 0:02:16]} 8. d4 {[%clk 0:02:46]}  cxd4 {[%clk 0:02:08]} 9. Nxd4 {[%clk 0:02:46]}  Nf6 {[%clk 0:02:05]} 10. Re1 {[%clk 0:02:46]}  O-O {[%clk 0:02:03]} 11. Bg5 {[%clk 0:02:45]}  Rc8 {[%clk 0:02:01]} 12. Qd3 {[%clk 0:02:40]}  Nd7 {[%clk 0:01:53]} 13. b3 {[%clk 0:02:33]}  h6 {[%clk 0:01:37]} 14. Be3 {[%clk 0:02:26]}  Qa5 {[%clk 0:01:27]} 15. Qd2 {[%clk 0:02:20]}  Qh5 {[%clk 0:01:14]} 16. f3 {[%clk 0:02:15]}  Kh7 {[%clk 0:01:07]} 17. Rad1 {[%clk 0:02:15]}  g5 {[%clk 0:01:03]} 18. Nf5 {[%clk 0:02:12]}  Bf6 {[%clk 0:00:54]} 19. Bxa7 {[%clk 0:01:52]}  g4 {[%clk 0:00:23]} 20. fxg4 {[%clk 0:01:46]}  Qxg4 {[%clk 0:00:15]} 21. Qxh6+ {[%clk 0:01:45]} 1-0


[Site "https://www.chess.com"]

[Event "Titled Tuesday Blitz June 13 Early 2023"]
[White "Zaitsev, Alexander"]
[Black "Timofeev, Artyom"]
[WhiteFideId "4164490"]
[BlackFideId "4140419"]
[WhiteElo "2373"]
[BlackElo "2570"]
[Result "0-1"]
[Round "1"]
[TimeControl "180+2"]
[Date "2023.06.13"]
[WhiteClock "0:00:00"]
[BlackClock "0:00:13"]
[Board "51"]

1. e4 {[%clk 0:03:00]}  e5 {[%clk 0:02:56]} 2. Nc3 {[%clk 0:02:59]}  Nc6 {[%clk 0:02:53]} 3. Bc4 {[%clk 0:03:00]}  Nf6 {[%clk 0:02:52]} 4. d3 {[%clk 0:03:00]}  Bb4 {[%clk 0:02:50]} 5. Qf3 {[%clk 0:03:00]}  Nd4 {[%clk 0:02:43]} 6. Qd1 {[%clk 0:02:58]}  O-O {[%clk 0:02:39]} 7. Nf3 {[%clk 0:02:56]}  d6 {[%clk 0:02:38]} 8. h3 {[%clk 0:02:44]}  b5 {[%clk 0:02:29]} 9. Bb3 {[%clk 0:02:33]}  a5 {[%clk 0:02:28]} 10. a3 {[%clk 0:02:29]}  Bxc3+ {[%clk 0:02:27]} 11. bxc3 {[%clk 0:02:30]}  Ne6 {[%clk 0:02:23]} 12. O-O {[%clk 0:02:13]}  h6 {[%clk 0:02:23]} 13. Re1 {[%clk 0:02:00]}  a4 {[%clk 0:02:18]} 14. Ba2 {[%clk 0:01:59]}  c5 {[%clk 0:02:15]} 15. d4 {[%clk 0:01:54]}  Qc7 {[%clk 0:01:47]} 16. Rb1 {[%clk 0:01:33]}  Rb8 {[%clk 0:01:41]} 17. Bd5 {[%clk 0:01:24]}  Rd8 {[%clk 0:01:20]} 18. Qe2 {[%clk 0:01:02]}  Bd7 {[%clk 0:01:13]} 19. dxe5 {[%clk 0:00:56]}  dxe5 {[%clk 0:01:13]} 20. Be3 {[%clk 0:00:55]}  Re8 {[%clk 0:00:51]} 21. Red1 {[%clk 0:00:53]}  Rbd8 {[%clk 0:00:38]} 22. g3 {[%clk 0:00:53]}  Nf8 {[%clk 0:00:27]} 23. Kh2 {[%clk 0:00:52]}  Ng6 {[%clk 0:00:25]} 24. c4 {[%clk 0:00:45]}  Nxd5 {[%clk 0:00:24]} 25. cxd5 {[%clk 0:00:42]}  c4 {[%clk 0:00:20]} 26. Qd2 {[%clk 0:00:29]}  Kh7 {[%clk 0:00:18]} 27. Qb4 {[%clk 0:00:30]}  Rc8 {[%clk 0:00:18]} 28. Kg2 {[%clk 0:00:23]}  c3 {[%clk 0:00:17]} 29. Rd3 {[%clk 0:00:21]}  Qc4 {[%clk 0:00:17]} 30. Qxc4 {[%clk 0:00:18]}  Rxc4 {[%clk 0:00:17]} 31. h4 {[%clk 0:00:15]}  f6 {[%clk 0:00:14]} 32. h5 {[%clk 0:00:15]}  Nh8 {[%clk 0:00:14]} 33. Ng1 {[%clk 0:00:13]}  Nf7 {[%clk 0:00:13]} 34. f3 {[%clk 0:00:13]}  f5 {[%clk 0:00:13]} 35. Ne2 {[%clk 0:00:14]}  fxe4 {[%clk 0:00:12]} 36. fxe4 {[%clk 0:00:15]}  Rxe4 {[%clk 0:00:12]} 37. Nxc3 {[%clk 0:00:15]}  Rc4 {[%clk 0:00:13]} 38. Nxb5 {[%clk 0:00:10]}  Rxc2+ {[%clk 0:00:13]} 39. Kf3 {[%clk 0:00:00]}  e4+ {[%clk 0:00:13]} 0-1


[Site "https://www.chess.com"]

[Event "Titled Tuesday Blitz June 13 Early 2023"]
[White "Zemlyanskii, Ivan"]
[Black "Khamdamova, Afruza"]
[WhiteFideId "24249971"]
[BlackFideId "14210444"]
[WhiteElo "2421"]
[BlackElo "2312"]
[Result "1-0"]
[Round "1"]
[TimeControl "180+2"]
[Date "2023.06.13"]
[WhiteClock "0:01:18"]
[BlackClock "0:00:17"]
[Board "52"]

1. d4 {[%clk 0:02:59]}  Nf6 {[%clk 0:02:59]} 2. c4 {[%clk 0:02:59]}  e6 {[%clk 0:02:59]} 3. Bf4 {[%clk 0:02:59]}  d5 {[%clk 0:02:58]} 4. cxd5 {[%clk 0:03:00]}  exd5 {[%clk 0:01:55]} 5. e3 {[%clk 0:02:59]}  Be7 {[%clk 0:01:55]} 6. Nc3 {[%clk 0:02:56]}  c6 {[%clk 0:01:55]} 7. Bd3 {[%clk 0:02:53]}  O-O {[%clk 0:01:54]} 8. Qc2 {[%clk 0:02:51]}  Nbd7 {[%clk 0:01:46]} 9. Nf3 {[%clk 0:02:50]}  Re8 {[%clk 0:01:44]} 10. h3 {[%clk 0:02:51]}  Nf8 {[%clk 0:01:44]} 11. O-O {[%clk 0:02:52]}  Ng6 {[%clk 0:01:44]} 12. Bh2 {[%clk 0:02:52]}  Be6 {[%clk 0:01:39]} 13. Rab1 {[%clk 0:02:53]}  a5 {[%clk 0:01:38]} 14. a3 {[%clk 0:02:49]}  Bd6 {[%clk 0:01:33]} 15. Bxd6 {[%clk 0:02:46]}  Qxd6 {[%clk 0:01:32]} 16. Rfc1 {[%clk 0:02:38]}  Nd7 {[%clk 0:01:30]} 17. Na4 {[%clk 0:02:21]}  Rec8 {[%clk 0:01:19]} 18. b4 {[%clk 0:02:10]}  axb4 {[%clk 0:01:18]} 19. axb4 {[%clk 0:02:11]}  b5 {[%clk 0:01:11]} 20. Nc5 {[%clk 0:02:11]}  Nb6 {[%clk 0:01:11]} 21. Nxe6 {[%clk 0:02:11]}  fxe6 {[%clk 0:00:54]} 22. Bxg6 {[%clk 0:02:11]}  hxg6 {[%clk 0:00:54]} 23. Qxg6 {[%clk 0:02:12]}  Nd7 {[%clk 0:00:50]} 24. Ng5 {[%clk 0:01:57]}  Nf8 {[%clk 0:00:48]} 25. Qf7+ {[%clk 0:01:46]}  Kh8 {[%clk 0:00:48]} 26. e4 {[%clk 0:01:47]}  Qc7 {[%clk 0:00:30]} 27. Qh5+ {[%clk 0:01:35]}  Kg8 {[%clk 0:00:30]} 28. exd5 {[%clk 0:01:36]}  exd5 {[%clk 0:00:30]} 29. Re1 {[%clk 0:01:35]}  Qd7 {[%clk 0:00:28]} 30. Re3 {[%clk 0:01:32]}  Re8 {[%clk 0:00:28]} 31. Rf3 {[%clk 0:01:20]}  Re7 {[%clk 0:00:17]} 32. Rxf8+ {[%clk 0:01:18]} 1-0


[Site "https://www.chess.com"]

[Event "Titled Tuesday Blitz June 13 Early 2023"]
[White "gueraumasague"]
[Black "Molina, Roberto Junio Brito"]
[BlackFideId "2109450"]
[WhiteElo "2482"]
[BlackElo "2376"]
[Result "1/2-1/2"]
[Round "1"]
[TimeControl "180+2"]
[Date "2023.06.13"]
[WhiteClock "0:00:14"]
[BlackClock "0:00:19"]
[Board "53"]

1. e4 {[%clk 0:02:59]}  c6 {[%clk 0:02:58]} 2. Nc3 {[%clk 0:02:57]}  d5 {[%clk 0:02:59]} 3. Qf3 {[%clk 0:02:57]}  dxe4 {[%clk 0:02:58]} 4. Nxe4 {[%clk 0:02:57]}  Nd7 {[%clk 0:02:58]} 5. d4 {[%clk 0:02:57]}  Ndf6 {[%clk 0:02:57]} 6. c3 {[%clk 0:02:40]}  Nxe4 {[%clk 0:02:56]} 7. Qxe4 {[%clk 0:02:40]}  Nf6 {[%clk 0:02:57]} 8. Qh4 {[%clk 0:02:41]}  Bf5 {[%clk 0:02:54]} 9. Nf3 {[%clk 0:02:41]}  e6 {[%clk 0:02:54]} 10. Be2 {[%clk 0:02:41]}  Be7 {[%clk 0:02:53]} 11. O-O {[%clk 0:02:38]}  O-O {[%clk 0:02:39]} 12. h3 {[%clk 0:02:37]}  Rc8 {[%clk 0:02:24]} 13. Rd1 {[%clk 0:02:36]}  Nd5 {[%clk 0:02:21]} 14. Qg3 {[%clk 0:02:35]}  Bd6 {[%clk 0:02:19]} 15. Qh4 {[%clk 0:02:33]}  Qc7 {[%clk 0:02:09]} 16. Bd3 {[%clk 0:02:17]}  Bxd3 {[%clk 0:02:03]} 17. Rxd3 {[%clk 0:02:18]}  Rfe8 {[%clk 0:01:59]} 18. c4 {[%clk 0:02:08]}  Nf6 {[%clk 0:01:44]} 19. c5 {[%clk 0:01:58]}  Be7 {[%clk 0:01:43]} 20. Bf4 {[%clk 0:01:58]}  Qd8 {[%clk 0:01:42]} 21. Be5 {[%clk 0:01:57]}  Nd5 {[%clk 0:01:38]} 22. Qg3 {[%clk 0:01:57]}  Bf6 {[%clk 0:01:37]} 23. Re1 {[%clk 0:01:53]}  g6 {[%clk 0:01:35]} 24. h4 {[%clk 0:01:52]}  h5 {[%clk 0:01:33]} 25. Bxf6 {[%clk 0:01:41]}  Qxf6 {[%clk 0:01:33]} 26. Ne5 {[%clk 0:01:41]}  Qf4 {[%clk 0:01:27]} 27. Qh3 {[%clk 0:01:34]}  Qf5 {[%clk 0:01:25]} 28. Qg3 {[%clk 0:01:32]}  Qf4 {[%clk 0:01:22]} 29. Qxf4 {[%clk 0:01:29]}  Nxf4 {[%clk 0:01:21]} 30. Rf3 {[%clk 0:01:30]}  Nd5 {[%clk 0:01:16]} 31. Nxf7 {[%clk 0:01:28]}  Re7 {[%clk 0:01:10]} 32. Ne5 {[%clk 0:01:12]}  Kh7 {[%clk 0:01:10]} 33. a3 {[%clk 0:01:07]}  Rd8 {[%clk 0:01:05]} 34. Re4 {[%clk 0:01:07]}  Nc7 {[%clk 0:00:58]} 35. Nf7 {[%clk 0:01:05]}  Rde8 {[%clk 0:00:55]} 36. Nd6 {[%clk 0:01:05]}  Rb8 {[%clk 0:00:54]} 37. Re5 {[%clk 0:01:02]}  Kg7 {[%clk 0:00:46]} 38. g3 {[%clk 0:01:02]}  Nd5 {[%clk 0:00:45]} 39. Kg2 {[%clk 0:01:02]}  b6 {[%clk 0:00:45]} 40. b4 {[%clk 0:01:01]}  a5 {[%clk 0:00:43]} 41. bxa5 {[%clk 0:00:56]}  bxa5 {[%clk 0:00:42]} 42. Ne4 {[%clk 0:00:49]}  a4 {[%clk 0:00:41]} 43. Ng5 {[%clk 0:00:49]}  Rbe8 {[%clk 0:00:40]} 44. Rd3 {[%clk 0:00:45]}  Nc7 {[%clk 0:00:36]} 45. Rd2 {[%clk 0:00:44]}  Nb5 {[%clk 0:00:36]} 46. Nf3 {[%clk 0:00:33]}  Rd8 {[%clk 0:00:33]} 47. Rg5 {[%clk 0:00:32]}  Rd5 {[%clk 0:00:20]} 48. Ne5 {[%clk 0:00:32]}  Nxd4 {[%clk 0:00:20]} 49. Nxg6 {[%clk 0:00:28]}  Rxg5 {[%clk 0:00:15]} 50. Nxe7 {[%clk 0:00:28]}  Rxc5 {[%clk 0:00:09]} 51. Rxd4 {[%clk 0:00:28]}  Kf6 {[%clk 0:00:10]} 52. Nc8 {[%clk 0:00:26]}  Rc3 {[%clk 0:00:10]} 53. Rxa4 {[%clk 0:00:26]}  c5 {[%clk 0:00:10]} 54. Nb6 {[%clk 0:00:25]}  Rb3 {[%clk 0:00:10]} 55. Nc4 {[%clk 0:00:25]}  Kf5 {[%clk 0:00:10]} 56. Ra5 {[%clk 0:00:25]}  Ke4 {[%clk 0:00:09]} 57. Rxc5 {[%clk 0:00:25]}  Kd4 {[%clk 0:00:10]} 58. Rc8 {[%clk 0:00:20]}  Rc3 {[%clk 0:00:10]} 59. a4 {[%clk 0:00:19]}  e5 {[%clk 0:00:09]} 60. a5 {[%clk 0:00:19]}  Rc1 {[%clk 0:00:09]} 61. a6 {[%clk 0:00:19]}  Ra1 {[%clk 0:00:09]} 62. Rc6 {[%clk 0:00:11]}  Kd5 {[%clk 0:00:08]} 63. Rc8 {[%clk 0:00:10]}  Kd4 {[%clk 0:00:09]} 64. Ne3 {[%clk 0:00:11]}  e4 {[%clk 0:00:09]} 65. Rh8 {[%clk 0:00:11]}  Ra5 {[%clk 0:00:08]} 66. Rxh5 {[%clk 0:00:12]}  Rxh5 {[%clk 0:00:08]} 67. g4 {[%clk 0:00:12]}  Ra5 {[%clk 0:00:07]} 68. Kg3 {[%clk 0:00:12]}  Rxa6 {[%clk 0:00:07]} 69. g5 {[%clk 0:00:13]}  Ke5 {[%clk 0:00:07]} 70. Kg4 {[%clk 0:00:13]}  Ra8 {[%clk 0:00:07]} 71. h5 {[%clk 0:00:13]}  Rf8 {[%clk 0:00:07]} 72. h6 {[%clk 0:00:12]}  Rxf2 {[%clk 0:00:06]} 73. g6 {[%clk 0:00:13]}  Kf6 {[%clk 0:00:05]} 74. Kh5 {[%clk 0:00:12]}  Rh2+ {[%clk 0:00:05]} 75. Kg4 {[%clk 0:00:12]}  Rxh6 {[%clk 0:00:06]} 76. Kf4 {[%clk 0:00:12]}  Rxg6 {[%clk 0:00:06]} 77. Kxe4 {[%clk 0:00:12]}  Ke6 {[%clk 0:00:07]} 78. Kd3 {[%clk 0:00:12]}  Rg8 {[%clk 0:00:08]} 79. Nc4 {[%clk 0:00:12]}  Rd8+ {[%clk 0:00:09]} 80. Ke4 {[%clk 0:00:12]}  Rc8 {[%clk 0:00:08]} 81. Ne3 {[%clk 0:00:13]}  Ra8 {[%clk 0:00:09]} 82. Kd4 {[%clk 0:00:14]}  Ra4+ {[%clk 0:00:09]} 83. Nc4 {[%clk 0:00:15]}  Kd7 {[%clk 0:00:09]} 84. Kc5 {[%clk 0:00:16]}  Kc7 {[%clk 0:00:09]} 85. Kd4 {[%clk 0:00:17]}  Ra1 {[%clk 0:00:10]} 86. Kc5 {[%clk 0:00:17]}  Rd1 {[%clk 0:00:11]} 87. Ne5 {[%clk 0:00:17]}  Rc1+ {[%clk 0:00:10]} 88. Nc4 {[%clk 0:00:18]}  Re1 {[%clk 0:00:11]} 89. Kd5 {[%clk 0:00:18]}  Rh1 {[%clk 0:00:11]} 90. Ne5 {[%clk 0:00:19]}  Rh4 {[%clk 0:00:12]} 91. Nc4 {[%clk 0:00:18]}  Rh5+ {[%clk 0:00:13]} 92. Ne5 {[%clk 0:00:18]}  Rg5 {[%clk 0:00:13]} 93. Ke6 {[%clk 0:00:19]}  Kb6 {[%clk 0:00:13]} 94. Kd5 {[%clk 0:00:19]}  Rh5 {[%clk 0:00:13]} 95. Kd4 {[%clk 0:00:20]}  Kc7 {[%clk 0:00:13]} 96. Kd5 {[%clk 0:00:20]}  Kd8 {[%clk 0:00:13]} 97. Ke6 {[%clk 0:00:21]}  Ke8 {[%clk 0:00:13]} 98. Kd5 {[%clk 0:00:20]}  Ke7 {[%clk 0:00:14]} 99. Ke4 {[%clk 0:00:21]}  Ke6 {[%clk 0:00:15]} 100. Nd3 {[%clk 0:00:21]}  Rh4+ {[%clk 0:00:15]} 101. Nf4+ {[%clk 0:00:22]}  Kf6 {[%clk 0:00:16]} 102. Kf3 {[%clk 0:00:20]}  Kf5 {[%clk 0:00:17]} 103. Ng2 {[%clk 0:00:21]}  Rh3+ {[%clk 0:00:17]} 104. Kf2 {[%clk 0:00:21]}  Ke4 {[%clk 0:00:17]} 105. Ne1 {[%clk 0:00:18]}  Rc3 {[%clk 0:00:17]} 106. Ke2 {[%clk 0:00:17]}  Ra3 {[%clk 0:00:17]} 107. Kd2 {[%clk 0:00:18]}  Ra2+ {[%clk 0:00:16]} 108. Kc3 {[%clk 0:00:19]}  Re2 {[%clk 0:00:16]} 109. Nc2 {[%clk 0:00:20]}  Kd5 {[%clk 0:00:16]} 110. Nb4+ {[%clk 0:00:20]}  Kc5 {[%clk 0:00:16]} 111. Nd3+ {[%clk 0:00:21]}  Kd5 {[%clk 0:00:16]} 112. Nb4+ {[%clk 0:00:21]}  Ke4 {[%clk 0:00:17]} 113. Kc4 {[%clk 0:00:21]}  Rb2 {[%clk 0:00:17]} 114. Kc5 {[%clk 0:00:21]}  Rb3 {[%clk 0:00:16]} 115. Kc4 {[%clk 0:00:21]}  Rb1 {[%clk 0:00:17]} 116. Kc5 {[%clk 0:00:22]}  Rc1+ {[%clk 0:00:17]} 117. Kb5 {[%clk 0:00:21]}  Kd4 {[%clk 0:00:18]} 118. Nc6+ {[%clk 0:00:21]}  Kd5 {[%clk 0:00:18]} 119. Nb4+ {[%clk 0:00:21]}  Kd6 {[%clk 0:00:19]} 120. Nd3 {[%clk 0:00:21]}  Rc3 {[%clk 0:00:19]} 121. Nb4 {[%clk 0:00:21]}  Rc5+ {[%clk 0:00:19]} 122. Ka4 {[%clk 0:00:22]}  Rh5 {[%clk 0:00:19]} 123. Kb3 {[%clk 0:00:22]}  Kc5 {[%clk 0:00:19]} 124. Nd3+ {[%clk 0:00:22]}  Kd4 {[%clk 0:00:19]} 125. Nb4 {[%clk 0:00:22]}  Rb5 {[%clk 0:00:19]} 126. Ka4 {[%clk 0:00:15]}  Kc4 {[%clk 0:00:19]} 127. Nc6 {[%clk 0:00:14]} 1/2-1/2


[Site "https://www.chess.com"]

[Event "Titled Tuesday Blitz June 13 Early 2023"]
[White "Chigaev, Maksim"]
[Black "Matyukov, Petr"]
[WhiteFideId "4108116"]
[BlackFideId "4103688"]
[WhiteElo "2561"]
[BlackElo "2278"]
[Result "1-0"]
[Round "1"]
[TimeControl "180+2"]
[Date "2023.06.13"]
[WhiteClock "0:00:15"]
[BlackClock "0:00:05"]
[Board "56"]

1. e4 {[%clk 0:02:57]}  c5 {[%clk 0:02:59]} 2. c3 {[%clk 0:02:55]}  Nf6 {[%clk 0:02:58]} 3. e5 {[%clk 0:02:54]}  Nd5 {[%clk 0:02:58]} 4. Bc4 {[%clk 0:02:54]}  Nb6 {[%clk 0:02:51]} 5. Bb3 {[%clk 0:02:55]}  Nc6 {[%clk 0:02:50]} 6. Nf3 {[%clk 0:02:55]}  d6 {[%clk 0:02:37]} 7. exd6 {[%clk 0:02:56]}  Qxd6 {[%clk 0:02:38]} 8. O-O {[%clk 0:02:56]}  e6 {[%clk 0:02:37]} 9. Na3 {[%clk 0:02:42]}  a6 {[%clk 0:02:31]} 10. Qe2 {[%clk 0:02:27]}  Be7 {[%clk 0:02:29]} 11. Nc2 {[%clk 0:02:25]}  O-O {[%clk 0:02:26]} 12. d4 {[%clk 0:02:25]}  cxd4 {[%clk 0:02:22]} 13. Ncxd4 {[%clk 0:02:25]}  Bf6 {[%clk 0:02:11]} 14. Rd1 {[%clk 0:02:19]}  Qc7 {[%clk 0:01:54]} 15. Nxc6 {[%clk 0:02:05]}  bxc6 {[%clk 0:01:38]} 16. Bg5 {[%clk 0:02:06]}  Bxg5 {[%clk 0:01:29]} 17. Nxg5 {[%clk 0:02:06]}  h6 {[%clk 0:01:29]} 18. Nf3 {[%clk 0:02:05]}  Bb7 {[%clk 0:01:28]} 19. Qe5 {[%clk 0:02:00]}  Qe7 {[%clk 0:01:18]} 20. Qd6 {[%clk 0:01:31]}  Qxd6 {[%clk 0:01:15]} 21. Rxd6 {[%clk 0:01:31]}  Rad8 {[%clk 0:01:13]} 22. Rad1 {[%clk 0:01:31]}  Rxd6 {[%clk 0:00:50]} 23. Rxd6 {[%clk 0:01:32]}  Nd5 {[%clk 0:00:20]} 24. Rd7 {[%clk 0:01:19]}  Rb8 {[%clk 0:00:18]} 25. Ne5 {[%clk 0:01:14]}  f6 {[%clk 0:00:18]} 26. Nd3 {[%clk 0:01:14]}  Bc8 {[%clk 0:00:18]} 27. Rd8+ {[%clk 0:01:10]}  Kf7 {[%clk 0:00:18]} 28. h4 {[%clk 0:01:11]}  Ke7 {[%clk 0:00:18]} 29. Rg8 {[%clk 0:01:11]}  Kf7 {[%clk 0:00:18]} 30. Rh8 {[%clk 0:01:12]}  Ne7 {[%clk 0:00:17]} 31. Bc4 {[%clk 0:00:49]}  Ng6 {[%clk 0:00:15]} 32. Rd8 {[%clk 0:00:47]}  Ke7 {[%clk 0:00:15]} 33. Rg8 {[%clk 0:00:36]}  Kf7 {[%clk 0:00:15]} 34. Rxc8 {[%clk 0:00:34]}  Rxc8 {[%clk 0:00:14]} 35. Bxa6 {[%clk 0:00:35]}  Ra8 {[%clk 0:00:14]} 36. Bc4 {[%clk 0:00:35]}  Nxh4 {[%clk 0:00:12]} 37. Nc5 {[%clk 0:00:34]}  Re8 {[%clk 0:00:12]} 38. a4 {[%clk 0:00:34]}  Nf5 {[%clk 0:00:12]} 39. b4 {[%clk 0:00:31]}  Nd6 {[%clk 0:00:12]} 40. Be2 {[%clk 0:00:25]}  e5 {[%clk 0:00:10]} 41. a5 {[%clk 0:00:25]}  Ra8 {[%clk 0:00:08]} 42. Bf3 {[%clk 0:00:19]}  Rc8 {[%clk 0:00:07]} 43. g4 {[%clk 0:00:17]}  Nb5 {[%clk 0:00:08]} 44. Na4 {[%clk 0:00:15]}  Ke6 {[%clk 0:00:06]} 45. Kg2 {[%clk 0:00:16]}  Kd6 {[%clk 0:00:06]} 46. Be4 {[%clk 0:00:11]}  Nc7 {[%clk 0:00:07]} 47. c4 {[%clk 0:00:11]}  Ne6 {[%clk 0:00:07]} 48. c5+ {[%clk 0:00:11]}  Kd7 {[%clk 0:00:07]} 49. Nb6+ {[%clk 0:00:12]}  Kc7 {[%clk 0:00:07]} 50. Nxc8 {[%clk 0:00:13]}  Kxc8 {[%clk 0:00:08]} 51. Bf5 {[%clk 0:00:13]}  Kd7 {[%clk 0:00:08]} 52. a6 {[%clk 0:00:14]}  g6 {[%clk 0:00:07]} 53. Bxe6+ {[%clk 0:00:14]}  Kxe6 {[%clk 0:00:05]} 54. a7 {[%clk 0:00:15]} 1-0


[Site "https://www.chess.com"]